[Event "Susha Chess Rapid 2022"]
[Site "Shusha"]
[Date "2022.09.23"]
[Round "6.2"]
[White "Vidit, Santosh Gujrathi"]
[Black "Wang, Hao"]
[Result "1/2-1/2"]
[ECO "B31"]
[WhiteElo "2710"]
[BlackElo "2722"]
[Annotator "TA"]
[PlyCount "111"]
[EventDate "2022.09.21"]
[EventType "tourn"]
[EventCountry "AZE"]
[SourceTitle "playchess.com"]
[Source "ChessBase"]
[SourceQuality "1"]
[TimeControl "900+10"]

{[%evp 22,111,47,42,29,31,30,27,46,0,0,0,0,0,0,0,0,0,0,0,0,0,0,0,16,8,13,18,20,20,20,21,21,9,6,0,0,0,0,0,0,-8,-4,-16,0,-79,-61,-68,-9,-10,-12,-15,-15,-36,-35,-34,-38,-35,-41,-37,-37,-37,-37,-37,-37,-33,-8,-55,-44,-80,-70,-102,0,-112,-8,-8,-8,-8,-8,-8,-8,-8,-8,-8,0,0,0,0,0,0,0,0]} 1. e4 {[%emt 0:00:03]} c5 {[%emt 0:00:01]} 2. Nf3 {[%emt 0:00:02]} Nc6 {[%emt 0:00:04]} 3. Bb5 {[%emt 0:00:03]} g6 {[%emt 0:00:02]} 4. Bxc6 {[%emt 0:00:04]} bxc6 {[%emt 0:00:03]} 5. O-O {[%emt 0:00:06]} Bg7 {[%emt 0:00:02]} 6. Re1 {[%emt 0:00:11]} Nf6 {[%emt 0:00:16][%cal Bg8f6,Bf6d5,Bd5c7,Bc7e6][%mdl 32]} 7. e5 {[%emt 0:00:52]} Nd5 {[%emt 0:00:02]} 8. c4 {[%emt 0:00:43]} Nc7 {[%emt 0:00:02]} 9. Nc3 {[%emt 0:00:45]} O-O {[%emt 0:00:38]} 10. d4 {[%emt 0:00:13]} cxd4 {[%emt 0:00:02]} 11. Qxd4 {[%emt 0:00:06]} Ne6 {[%emt 0:00:02]} 12. Qh4 {[%emt 0:00:07]} Rb8 {[%emt 0:00:01] B31: Sicilian: 2...Nc6 3 Bb5 g6.} 13. b3 {[%emt 0:01:11]} d5 {[%emt 0:00:01]} 14. cxd5 {[%emt 0:00:28]} cxd5 {[%emt 0:00:03] [#] White has an edge.} 15. Be3 $146 {[%emt 0:01:29] Inhibits d4.} (15. Ne2 $14) ({Predecessor:} 15. Rd1 Bb7 16. Bh6 Rc8 17. Ne2 Rc5 18. Ned4 Nxd4 19. Nxd4 Qc7 {½-½ (19) Tauscher,K (2500)-Offenborn,H (2335) Remote email 2012}) 15... a5 $1 $11 {[%emt 0:01:59]} 16. Ne2 {[%emt 0:02:00]} Rb4 {[%emt 0:03:22]} 17. Ned4 {[%emt 0:00:02]} Nxd4 {[%emt 0:00:04]} 18. Bxd4 {[%emt 0:00:03]} Bf5 {[%emt 0:01:31]} 19. Qg5 {[%emt 0:02:37]} Be4 {[%emt 0:02:51] Strongly threatening ...Bxf3.} 20. Bc5 {[%emt 0:00:01]} Rb7 {[%emt 0:01:52]} 21. Nd2 {[%emt 0:02:00]} Qc7 {[%emt 0:01:29]} 22. Bd4 {[%emt 0:01:32]} Qc2 {[%emt 0:00:05]} 23. Qe3 {[%emt 0:00:27]} Qd3 {[%emt 0:01:20]} 24. Nxe4 {[%emt 0:00:12]} dxe4 {[%emt 0:00:14]} 25. Qxe4 {[%emt 0:00:16]} Qxe4 {[%emt 0:00:02]} 26. Rxe4 {[%emt 0:00:01]} Rb4 {[%emt 0:00:02] And now ...Rd8 would win.} 27. Rae1 {[%emt 0:00:40]} Rc8 $1 {[%emt 0:00:02] Inhibits Bc3.} 28. Kf1 {[%emt 0:02:24]} Rc2 {[%emt 0:00:42] Against Bb2} 29. Ba7 {[%emt 0:00:40]} Rb7 {[%emt 0:00:27]} 30. Be3 {[%emt 0:00:10]} Rxa2 {[%emt 0:00:08]} 31. Rd1 {[%emt 0:00:05] White threatens Rd8+ and mate.} h5 {[%emt 0:01:08]} 32. Rd3 {[%emt 0:00:11]} Rb2 {[%emt 0:00:51]} 33. Ra4 {[%emt 0:00:26]} (33. e6 $11 Rb1+ 34. Ke2 Rb2+ 35. Kf1) 33... Rb5 {[%emt 0:00:22]} ({But not} 33... R7xb3 34. Rxb3 Rxb3 35. Rxa5 $11) 34. f4 {[%emt 0:00:11]} R2xb3 {[%emt 0:00:03]} ({Of course not} 34... R5xb3 35. Rxb3 Rxb3 36. Ke2 $11) (34... g5 $1 $15) 35. Rxb3 {[%emt 0:00:01]} Rxb3 $15 {[%emt 0:00:02][%mdl 4096] Endgame KRB-KRB} 36. Ke2 {[%emt 0:00:14]} g5 {[%emt 0:00:29] Threatening ...gxf4.} 37. g3 {[%emt 0:00:19]} Rb2+ {[%emt 0:00:02]} 38. Bd2 {[%emt 0:00:01]} gxf4 {[%emt 0:00:02]} 39. gxf4 {[%emt 0:00:02]} Bh6 {[%emt 0:00:02]} 40. Kd3 {[%emt 0:00:10]} Rb3+ {[%emt 0:00:02]} 41. Bc3 {[%emt 0:00:19]} e6 {[%emt 0:00:08]} 42. f5 {[%emt 0:00:25]} exf5 {[%emt 0:00:03]} 43. Rxa5 {[%emt 0:00:02]} Bg7 {[%emt 0:00:39]} (43... Bf4 $5 {[%cal Rf4h2]} 44. Kc2 Rb8 $15) 44. Kc2 {[%emt 0:00:16]} (44. Kd4 $11) 44... Rb7 {[%emt 0:00:02]} 45. Ra2 {[%emt 0:00:17]} Rd7 {[%emt 0:00:11]} 46. Kb3 {[%emt 0:00:08] [#]} f4 {[%emt 0:00:30]} (46... Re7 $1 $17 47. Rf2 Kh7) 47. Rf2 {[%emt 0:00:06] [#]} (47. Kc4 $11 {remains equal.}) 47... Bh6 {[%emt 0:00:02]} (47... Rc7 $1 $17) 48. Kc4 $11 {[%emt 0:00:08] The position is equal.} Kh7 {[%emt 0:00:15] White must now prevent ...Kg6.} 49. Bd2 {[%emt 0:00:02]} Ra7 {[%emt 0:00:04]} 50. Kb3 {[%emt 0:00:12]} Kg6 {[%emt 0:00:41] Hoping for ...Kf5.} 51. Bxf4 {[%emt 0:00:03]} Bxf4 {[%emt 0:00:02]} 52. Rxf4 {[%emt 0:00:01]} Ra6 {[%emt 0:00:01]} 53. Kc3 {[%emt 0:00:22]} Ra3+ {[%emt 0:00:25]} 54. Kd4 {[%emt 0:00:01]} Ra4+ {[%emt 0:00:04]} 55. Ke3 {[%emt 0:00:01]} Ra3+ {[%emt 0:00:00]} 56. Ke4 {Weighted Error Value: White=0.13 (very precise) /Black=0.11 (very precise)} 1/2-1/2

[Event "Susha Chess Rapid 2022"]
[Site "Shusha"]
[Date "2022.09.23"]
[Round "6.4"]
[White "Maghsoodloo, Parham"]
[Black "Mamedov, Rauf"]
[Result "1-0"]
[ECO "D10"]
[WhiteElo "2721"]
[BlackElo "2646"]
[Annotator "TA"]
[PlyCount "95"]
[EventDate "2022.09.21"]
[EventType "tourn"]
[EventCountry "AZE"]
[SourceTitle "playchess.com"]
[Source "ChessBase"]
[SourceQuality "1"]
[TimeControl "900+10"]

{[%evp 9,95,7,9,0,8,20,0,0,0,0,0,-1,16,12,22,0,0,0,0,0,0,0,0,0,0,-21,4,9,7,8,5,-10,8,10,7,6,20,0,0,0,0,0,50,45,42,53,62,62,62,62,91,91,91,91,91,91,91,91,91,88,91,80,80,72,109,62,62,0,108,108,271,271,280,271,270,269,5329,5427,2897,1905,29966,29966,29977,29978,29978,29979,29978,29979]} 1. d4 {[%emt 0:00:02]} d5 {[%emt 0:00:02]} 2. c4 {[%emt 0:00:02]} c6 {[%emt 0:00:05]} 3. e3 {[%emt 0:00:02]} Nf6 {[%emt 0:00:04]} 4. Nc3 {[%emt 0:00:02]} Bf5 {[%emt 0:00:02]} 5. f3 {[%emt 0:00:02]} e6 {[%emt 0:00:39]} 6. g4 {[%emt 0:00:02] D10: Slav Defence: 3 cxd5 (without early Nf3) and 3 Nc3.} Bg6 {[%emt 0:00:01]} 7. h4 {[%emt 0:00:02]} h6 {[%emt 0:00:03]} 8. Nge2 {[%emt 0:00:15] The position is equal.} Bd6 {[%emt 0:00:02] [#]} 9. Nf4 $146 {[%emt 0:00:17]} ({Predecessor:} 9. Qb3 b6 10. cxd5 exd5 11. Nf4 Bh7 12. Bd2 g5 13. Nfe2 Qe7 14. hxg5 hxg5 15. Bg2 {1-0 (22) Maghsoodloo,P (2701)-Smirnov,A (2600) Chennai 2022}) 9... Bxf4 {[%emt 0:00:34]} 10. exf4 {[%emt 0:00:01]} dxc4 {[%emt 0:00:09]} 11. Bxc4 {[%emt 0:00:10]} Nbd7 {[%emt 0:01:14]} (11... b5 $5 {[%cal Rb5c4]} 12. Bb3 Kf8 $14) 12. Kf2 {[%emt 0:00:05]} Nb6 {[%emt 0:00:27]} 13. Bb3 {[%emt 0:00:05]} h5 {[%emt 0:01:14]} 14. f5 {[%emt 0:00:02]} exf5 {[%emt 0:00:01]} 15. g5 {[%emt 0:00:01]} Nfd5 {[%emt 0:00:00]} 16. Nxd5 {[%emt 0:02:31]} Nxd5 {[%emt 0:00:02]} 17. Qe1+ {[%emt 0:00:01]} Kf8 {[%emt 0:00:10]} 18. Bxd5 {[%emt 0:00:02]} Qxd5 {[%emt 0:00:01]} 19. Qb4+ {[%emt 0:00:01]} Kg8 {[%emt 0:00:01]} 20. Bf4 {[%emt 0:00:51]} Kh7 {[%emt 0:00:32]} 21. Qxb7 {[%emt 0:00:06]} Qxd4+ {[%emt 0:01:31]} 22. Kg3 {[%emt 0:00:01]} Rhe8 {[%emt 0:00:27][%cal Oe8e2]} 23. Rh2 {[%emt 0:00:50] Against Re2} Qb6 {[%emt 0:00:08]} 24. Qxb6 {[%emt 0:00:17]} axb6 {[%emt 0:00:01]} 25. a4 {[%emt 0:00:02]} f6 {[%emt 0:02:37]} (25... c5 $11) 26. gxf6 $14 {[%emt 0:00:12]} gxf6 {[%emt 0:00:01]} 27. Rd2 {[%emt 0:00:18]} Red8 {[%emt 0:01:01] Against Rd7+} 28. Rxd8 {[%emt 0:00:12]} Rxd8 {[%emt 0:00:01][%mdl 4096] Endgame KRB-KRB} 29. b4 {[%emt 0:01:57]} Ra8 {[%emt 0:00:22]} 30. Be3 {[%emt 0:01:01]} f4+ {[%emt 0:02:02]} 31. Kxf4 {[%emt 0:00:02]} Bc2 {[%emt 0:00:01]} 32. a5 $1 {[%emt 0:00:00]} ({Much weaker is} 32. Bxb6 Rxa4 33. Rxa4 Bxa4 $11) 32... bxa5 {[%emt 0:00:00]} 33. bxa5 {[%emt 0:01:50] And now a6 would win.} Bd3 {[%emt 0:00:02]} 34. Rd1 {[%emt 0:00:25]} Bc4 {[%emt 0:01:16]} 35. Rd7+ {[%emt 0:01:25]} Kg6 {[%emt 0:00:01]} 36. Bb6 {[%emt 0:00:07]} Bd5 {[%emt 0:01:37]} 37. Rc7 {[%emt 0:00:09] White is more active.} ({White should play} 37. Rd6 $16) 37... Rb8 $1 {[%emt 0:00:41]} 38. Rd7 {[%emt 0:00:01]} (38. Re7 $14) 38... Ra8 $16 {[%emt 0:00:01]} 39. Rd6 {[%emt 0:00:11]} Ra6 $2 {[%emt 0:00:15] [#] This move loses the game for Black.} (39... Bb3 $16 {is a better defense.} 40. Rxc6 Bd5) 40. Bd8 $1 $18 {[%emt 0:00:40]} Ra7 {[%emt 0:03:10]} 41. Rxf6+ {[%emt 0:00:41]} Kg7 {[%emt 0:00:01] Strongly threatening ...Rd7.} 42. Rf5 {[%emt 0:00:01]} Rf7 $2 {[%emt 0:00:18] [#]} (42... Ra8) 43. Rxf7+ $1 {[%emt 0:01:31]} Kxf7 {[%emt 0:00:01]} 44. Bb6 {[%emt 0:00:01] White wants to mate with a6.} Ke6 {[%emt 0:00:18]} 45. a6 {[%emt 0:00:11][%cal Ba5a6,Ba6a7][%mdl 32] White mates.} Kd6 {[%emt 0:00:01] [#]} 46. Bc5+ $1 {[%emt 0:00:01][%mdl 512]} Kc7 {[%emt 0:00:07]} 47. a7 {[%emt 0:00:08]} Kb7 {[%emt 0:00:00]} 48. Ke3 {[%emt 0:00:02] Weighted Error Value: White=0.06 (flawless) /Black=0.27 (precise)} 1-0

[Event "Susha Chess Rapid 2022"]
[Site "Shusha"]
[Date "2022.09.23"]
[Round "6.5"]
[White "Yilmaz, Mustafa"]
[Black "Guseinov, Gadir"]
[Result "1-0"]
[ECO "E94"]
[WhiteElo "2633"]
[BlackElo "2661"]
[Annotator "TA"]
[PlyCount "105"]
[EventDate "2022.09.21"]
[EventType "tourn"]
[EventCountry "AZE"]
[SourceTitle "playchess.com"]
[Source "ChessBase"]
[SourceQuality "1"]
[TimeControl "900+10"]

{[%evp 20,105,33,23,18,29,21,39,74,66,66,81,83,84,71,69,66,61,125,-6,-8,-3,31,0,0,0,0,0,0,0,22,17,64,18,25,17,12,11,52,62,95,85,91,92,87,94,131,78,190,177,211,214,225,243,244,252,227,195,180,177,259,239,297,285,311,312,364,368,356,354,457,449,591,616,588,612,872,874,914,785,763,736,1464,576,5222,2356,2081,1700]} 1. d4 {[%emt 0:00:02]} Nf6 {[%emt 0:00:02]} 2. c4 {[%emt 0:00:04]} g6 {[%emt 0:00:03]} 3. Nc3 {[%emt 0:00:02]} Bg7 {[%emt 0:00:01]} 4. e4 {[%emt 0:00:01]} d6 {[%emt 0:00:01]} 5. Nf3 {[%emt 0:00:02]} O-O {[%emt 0:00:02]} 6. Be2 {[%emt 0:00:03]} e5 {[%emt 0:00:02]} 7. O-O {[%emt 0:00:03]} exd4 {[%emt 0:00:02]} 8. Nxd4 {[%emt 0:00:02]} Re8 {[%emt 0:00:03]} 9. f3 {[%emt 0:00:02]} c6 {[%emt 0:00:01]} 10. Nc2 {[%emt 0:00:03]} Na6 {[%emt 0:00:04]} 11. Kh1 {[%emt 0:01:13]} Nc7 {[%emt 0:00:45] E94: King's Indian: Classical: 6 Be2 e5 7 0-0: Various Black 7th moves.} 12. Bg5 $1 {[%emt 0:00:02][%mdl 4] is now more promising than 12.Bf4.} h6 {[%emt 0:02:16]} 13. Bh4 {[%emt 0:00:01]} d5 {[%emt 0:01:38] White is slightly better.} 14. cxd5 {[%emt 0:00:02]} cxd5 {[%emt 0:00:02]} 15. Qe1 $1 {[%emt 0:00:09]} g5 {[%emt 0:01:43]} 16. Bg3 {[%emt 0:00:05]} Nh5 {[%emt 0:00:20]} 17. Rd1 $1 {[%emt 0:03:35]} Nxg3+ {[%emt 0:03:20]} 18. Qxg3 {[%emt 0:00:02]} d4 {[%emt 0:00:25] [#]} ({Black should try} 18... Qe7 $14) 19. Bc4 $146 {[%emt 0:03:32] White is more active.} (19. f4 $1 $16) ({Predecessor:} 19. f4 Ne6 20. f5 Nc5 21. Qf3 Qe7 22. Nxd4 Nxe4 23. Nd5 Qe5 24. Nb5 Rd8 25. Nbc7 {1-0 (44) Andersen,M (2587)-Ashiku,F (2422) Chennai 2022}) 19... Be6 $36 {[%emt 0:03:15][%mdl 2048] Black is pushing.} 20. Bxe6 {[%emt 0:00:14]} Rxe6 {[%emt 0:00:52]} 21. Nb4 {[%emt 0:05:44]} Qd6 {[%emt 0:01:06]} 22. Ncd5 {[%emt 0:00:03] And now Qxd6 would win.} Qxg3 {[%emt 0:00:45]} 23. hxg3 {[%emt 0:00:01]} Nxd5 {[%emt 0:00:24]} 24. Nxd5 {[%emt 0:00:02]} Rd8 {[%emt 0:00:03][%cal Of7f5]} (24... Rc8 $5 {[%cal Rc8c2]}) 25. g4 {[%emt 0:01:10]} Be5 {[%emt 0:00:04]} (25... Rc8 $11 {feels stronger.}) 26. Kg1 {[%emt 0:00:06]} (26. Rg1 $1 $14) 26... Kg7 {[%emt 0:00:14]} 27. Kf2 {[%emt 0:00:05]} Rc8 {[%emt 0:00:28]} 28. Rd2 {[%emt 0:01:47] Inhibits Rc2.} Kf8 {[%emt 0:00:34]} 29. Rfd1 {[%emt 0:00:21]} Rd8 {[%emt 0:00:20] Black is on the road to losing.} 30. Rc2 {[%emt 0:00:15]} Rc6 {[%emt 0:00:03]} 31. Rxc6 {[%emt 0:00:26]} bxc6 $16 {[%emt 0:00:01][%mdl 4096] Endgame KRB-KRN} 32. Nb4 {[%emt 0:00:01]} c5 {[%emt 0:00:40]} 33. Nd3 {[%emt 0:00:53]} (33. Nc6 $142 Re8 34. Nxe5 (34. Nxa7 Ra8 $17) 34... Rxe5 35. Rc1) 33... Bf4 {[%emt 0:00:01]} (33... Bd6 $16) 34. Nxc5 $18 Rc8 35. b4 a5 36. a3 {[%emt 0:00:22]} ({Stronger than} 36. Rxd4 axb4 37. Nd3 Rc2+ 38. Kf1 Rd2 $14) 36... axb4 {[%emt 0:00:02]} 37. axb4 {[%emt 0:00:02]} Ra8 {[%emt 0:01:21]} 38. Rxd4 {[%emt 0:00:27]} Ra2+ {[%emt 0:00:00]} 39. Kf1 {[%emt 0:00:01]} Bg3 {[%emt 0:00:19]} (39... Be3 {was called for.} 40. Rd6 Rf2+ 41. Ke1 Rxg2 42. Rxh6 Bxc5) 40. Nd3 {[%emt 0:00:25]} Ra1+ {[%emt 0:00:11]} 41. Ke2 {[%emt 0:00:01]} Ra2+ {[%emt 0:00:01] [#]} 42. Kd1 $1 {[%emt 0:00:08]} Rxg2 {[%emt 0:00:02]} 43. b5 {[%emt 0:00:04] Threatens to win with b6.} Rg1+ {[%emt 0:00:06]} 44. Kc2 {[%emt 0:00:19]} Bc7 {[%emt 0:00:26]} 45. Rd7 {[%emt 0:00:02] White is clearly winning.} Ba5 {[%emt 0:00:19]} 46. Ne5 {[%emt 0:00:05]} Ke8 {[%emt 0:00:12]} 47. Rxf7 {[%emt 0:00:14]} Rg2+ {[%emt 0:00:01]} 48. Kb3 {[%emt 0:00:02]} Rg1 {[%emt 0:00:08]} 49. Ra7 {[%emt 0:00:31]} Bb6 {[%emt 0:00:04]} 50. Rb7 {[%emt 0:00:12]} Bd8 {[%emt 0:00:10]} 51. Kc4 {[%emt 0:00:04]} (51. Rb8 $142 Ke7 52. Nc6+ Kd7 53. Rxd8+ Kc7 54. Rh8) 51... Rd1 {[%emt 0:00:12]} 52. Nc6 {[%emt 0:00:04]} (52. Rb8 $142 Rb1 53. Nc6) 52... Bf6 {[%emt 0:00:03]} 53. e5 {[%emt 0:00:02] Weighted Error Value: White=0.22 (precise) /Black=0.29 (precise)} 1-0

[Event "Susha Chess Rapid 2022"]
[Site "Shusha"]
[Date "2022.09.23"]
[Round "8.2"]
[White "Vidit, Santosh Gujrathi"]
[Black "Maghsoodloo, Parham"]
[Result "0-1"]
[ECO "B90"]
[WhiteElo "2710"]
[BlackElo "2721"]
[Annotator "TA"]
[PlyCount "124"]
[EventDate "2022.09.21"]
[EventType "tourn"]
[EventCountry "AZE"]
[SourceTitle "playchess.com"]
[Source "ChessBase"]
[SourceQuality "1"]
[TimeControl "900+10"]

{[%evp 20,124,18,26,28,12,14,0,39,22,25,13,31,-37,0,-10,-16,-41,-41,-79,-86,-113,-113,-108,-114,-119,-113,-120,-111,-110,-104,-90,-74,-78,-79,-88,-84,-83,0,0,0,0,0,0,0,0,39,-71,-71,-75,-63,-87,-64,-142,-151,-149,-149,-172,-175,-167,-172,-222,-223,-228,-12,-12,-12,-8,-8,-8,-8,-14,-14,-121,-118,-124,-123,-376,-252,-252,-258,-764,-778,-772,-757,-748,-611,-687,-660,-562,-499,-2117,-1896,-29968,-29969,-29983,-29984,-29984,-29984,-29984,-29985,-29988,-29989,-29991,-29992,-29993,-29994]} 1. e4 {[%emt 0:00:04]} c5 {[%emt 0:00:04]} 2. Nf3 {[%emt 0:00:02]} d6 {[%emt 0:00:02]} 3. d4 {[%emt 0:00:03]} cxd4 {[%emt 0:00:02]} 4. Nxd4 {[%emt 0:00:02]} Nf6 {[%emt 0:00:01]} 5. Nc3 {[%emt 0:00:02]} a6 {[%emt 0:00:02]} 6. Be3 {[%emt 0:00:03]} e5 {[%emt 0:00:05]} 7. Nb3 {[%emt 0:00:02]} Be7 {[%emt 0:00:17]} 8. f3 {[%emt 0:00:06]} h5 {[%emt 0:00:09]} 9. Qd2 {[%emt 0:00:20]} Be6 {[%emt 0:00:03]} 10. Nd5 {[%emt 0:00:28]} Nxd5 {[%emt 0:00:07]} 11. exd5 {[%emt 0:00:02]} Bf5 {[%emt 0:00:02] B90: Sicilian Najdorf: Unusual White 6th moves, 6 Be3 Ng4 and 6 Be3 e5.} 12. O-O-O {[%emt 0:00:06]} Nd7 {[%emt 0:00:05]} 13. Kb1 {[%emt 0:00:01]} Qc7 {[%emt 0:00:07] The position is equal.} 14. Rc1 {[%emt 0:02:19]} O-O {[%emt 0:00:27]} 15. Bd3 {[%emt 0:00:20]} Bxd3 {[%emt 0:00:03] [#]} 16. cxd3 $146 {[%emt 0:00:29]} (16. Qxd3 $14 a5 17. h4) ({Predecessor:} 16. Qxd3 a5 17. g4 e4 18. Qxe4 Rfe8 19. Qf4 a4 20. Nd2 a3 21. b3 Bf6 22. c3 {½-½ (31) Wosch,A (2176)-Tobler,P (2164) LSS email 2012}) 16... Qd8 $15 {[%emt 0:00:04]} 17. d4 {[%emt 0:00:30]} Bf6 {[%emt 0:00:21]} 18. Rhd1 {[%emt 0:00:47]} Re8 {[%emt 0:00:10]} 19. Qb4 {[%emt 0:00:41]} e4 $1 {[%emt 0:00:17]} 20. f4 {[%emt 0:03:51]} Qb6 {[%emt 0:00:51]} 21. Qa4 {[%emt 0:00:21]} Qb5 {[%emt 0:00:04]} 22. Qxb5 {[%emt 0:00:05]} axb5 {[%emt 0:00:02]} 23. Rc7 {[%emt 0:00:03][%csl LRb7,LRd7]} Nb6 {[%emt 0:00:01]} 24. Rxb7 {[%emt 0:00:04]} Nxd5 {[%emt 0:00:02]} 25. Re1 {[%emt 0:00:13]} Rab8 {[%emt 0:01:27]} 26. Rd7 {[%emt 0:01:57]} Red8 {[%emt 0:00:01]} 27. Rxd8+ {[%emt 0:00:27]} Bxd8 {[%emt 0:00:14]} 28. f5 {[%emt 0:00:19]} g6 {[%emt 0:00:21]} (28... Bc7 $17) 29. fxg6 $11 {[%emt 0:01:41]} f5 {[%emt 0:00:01]} 30. Bh6 {[%emt 0:00:02]} Bf6 {[%emt 0:00:21]} 31. Rf1 {[%emt 0:00:08]} Ne7 {[%emt 0:00:01]} 32. d5 {[%emt 0:00:25]} Be5 {[%emt 0:01:22]} 33. Bg5 {[%emt 0:00:54]} (33. Na5 $14) 33... Nxd5 $17 {[%emt 0:00:02]} 34. Rxf5 {[%emt 0:00:07]} Kg7 {[%emt 0:00:17]} 35. Bc1 {[%emt 0:00:47]} e3 {[%emt 0:00:33][%mdl 1024] ...e2 is the strong threat. Black has strong compensation.} (35... Kxg6 $6 36. Rg5+ Kf7 37. Rxh5 $11) 36. Rf3 {[%emt 0:00:29]} (36. g3 $15) 36... e2 {[%emt 0:00:02]} (36... Kxg6 $6 37. Bxe3 Bxh2 38. Bd2 $11) 37. Bd2 {[%emt 0:00:02]} Re8 {[%emt 0:02:30] Black is more active.} (37... Kxg6 38. Nc1 $11) ({And not} 37... Bxh2 38. Rd3 Bf4 39. Be1) 38. g3 {[%emt 0:01:14]} Bf6 {[%emt 0:00:01]} ({Resist} 38... Kxg6 39. Rd3 $14) 39. Be1 {[%emt 0:00:02]} Ne3 $1 {[%emt 0:00:01]} ({Worse is} 39... Kxg6 40. Rf2 $11) 40. Rf2 {[%emt 0:01:10] [#] Against Ng2} (40. Nc1 $142) 40... Nd1 $1 $19 {[%emt 0:00:01]} 41. Rf3 {[%emt 0:00:25]} Nxb2 $2 {[%emt 0:01:44]} (41... Bxb2 $19 42. Rd3 d5) 42. Rxf6 $1 $11 {[%emt 0:00:25]} Nd3 {[%emt 0:00:02][%mdl 64] Zwischenzug} 43. Nc1 {[%emt 0:00:28][%cal Oc1d3]} Kxf6 {[%emt 0:01:44]} 44. Nxd3 {[%emt 0:00:01]} Kxg6 {[%emt 0:00:02] Hoping for ...Kf5.} 45. Kc2 {[%emt 0:00:07]} Kf5 {[%emt 0:00:01] Threatens to win with ...Kg4.} 46. Nf4 {[%emt 0:00:25] [#]} (46. h3 $11) 46... Kg4 $1 $17 {[%emt 0:00:05]} 47. Kd2 {[%emt 0:00:06]} Kf3 {[%emt 0:00:01] Strongly threatening ...Ra8.} 48. a3 $2 {[%emt 0:00:03][%mdl 8192] This costs White the game.} (48. Nxh5 $17 Ra8 49. Kd3) 48... Re4 $19 {[%emt 0:00:48] aiming for ...Rd4+.} 49. Nd3 {[%emt 0:00:16]} Rd4 {[%emt 0:00:20] And now ...Ke4 would win.} 50. Kc3 $2 {[%emt 0:00:08]} (50. Kc2) 50... Ke4 {[%emt 0:01:21]} 51. Nf4 {[%emt 0:00:16]} Rd1 {[%emt 0:00:02]} 52. Bd2 {[%emt 0:00:07]} Rc1+ {[%emt 0:01:23]} 53. Kb4 {[%emt 0:00:04]} e1=Q {[%emt 0:00:16]} 54. Bxe1 {[%emt 0:00:01]} Rxe1 {[%emt 0:00:02]} 55. Kxb5 {[%emt 0:00:22][%mdl 4096] Endgame KR-KN} (55. Nxh5 $142 Kd4 56. Kb3) 55... d5 {[%emt 0:00:27][%cal Bd6d5,Bd5d4,Bd4d3,Bd3d2][%mdl 32]} 56. Nxh5 {[%emt 0:00:10]} d4 {[%emt 0:00:19] Black mates.} 57. Nf4 {[%emt 0:00:01]} Rf1 {[%emt 0:00:15]} 58. Ne6 {[%emt 0:00:23]} Rf5+ {[%emt 0:00:58]} 59. Kc4 {[%emt 0:00:04]} d3 {[%emt 0:00:01]} 60. Kc3 {[%emt 0:00:16]} Ke3 {[%emt 0:00:02]} 61. a4 {[%emt 0:00:13]} d2 {[%emt 0:00:07]} 62. Kc2 {[%emt 0:00:03]} Rf1 {[%emt 0:00:02] Weighted Error Value: White=0.54/Black=0.14 (very precise)} 0-1

[Event "Susha Chess Rapid 2022"]
[Site "Shusha"]
[Date "2022.09.23"]
[Round "8.3"]
[White "Kasimdzhanov, Rustam"]
[Black "Mamedyarov, Shakhriyar"]
[Result "1/2-1/2"]
[ECO "C45"]
[WhiteElo "2670"]
[BlackElo "2757"]
[Annotator "TA"]
[PlyCount "51"]
[EventDate "2022.09.21"]
[EventType "tourn"]
[EventCountry "AZE"]
[SourceTitle "playchess.com"]
[Source "ChessBase"]
[SourceQuality "1"]
[TimeControl "900+10"]

{[%evp 20,51,0,0,0,5,14,19,0,0,0,0,0,0,8,12,9,13,0,0,28,26,18,19,13,15,20,20,34,56,17,15,25,0]} 1. e4 {[%emt 0:00:00]} e5 {[%emt 0:00:01]} 2. Nf3 {[%emt 0:00:01]} Nc6 3. d4 exd4 {[%emt 0:00:08]} 4. Nxd4 {[%emt 0:00:01]} Nf6 {[%emt 0:00:21]} 5. Nxc6 {[%emt 0:00:02]} bxc6 {[%emt 0:00:02]} 6. e5 {[%emt 0:00:01]} Qe7 {[%emt 0:00:02]} 7. Qe2 {[%emt 0:00:01]} Nd5 {[%emt 0:00:02]} 8. g3 {[%emt 0:00:03]} g6 {[%emt 0:00:09]} 9. c4 {[%emt 0:00:03]} Ba6 {[%emt 0:00:33]} 10. b3 {[%emt 0:00:03]} Bg7 {[%emt 0:00:05]} 11. Bb2 $1 {[%emt 0:00:02]} d6 {[%emt 0:01:48] C45: Scotch Game.} 12. Bg2 {[%emt 0:01:48]} O-O-O {[%emt 0:00:19][%cal Rd6e5] [#]} (12... dxe5 $2 13. Qd2 $18) ({Don't take} 12... Bxe5 13. Bxe5 dxe5 14. Qd2 $16) 13. Qd2 $146 {[%emt 0:01:20] [#] Hoping for 0-0.} ({Predecessor:} 13. Nc3 Nxc3 14. Bxc3 Bxe5 15. O-O Rhe8 16. Bxe5 Qxe5 17. Qf3 d5 18. Qxf7 Qe7 19. Qf3 {1-0 (56) Nowak,I (2093)-Krol,W (1907) LSS email 2017}) 13... Nb4 $1 {[%emt 0:00:53] The position is equal.} 14. a3 $1 {[%emt 0:01:00]} ({Not} 14. Qxb4 $2 Bxe5 15. O-O (15. Bh3+ $2 f5 $19) 15... Bxb2 $17) 14... Nd3+ {[%emt 0:00:08]} 15. Qxd3 {[%emt 0:00:04]} Bxe5 {[%emt 0:00:02]} 16. O-O {[%emt 0:00:34]} Bxb2 {[%emt 0:00:09]} 17. Ra2 {[%emt 0:00:08]} Bg7 {[%emt 0:02:26][%cal Od6d5]} 18. Bxc6 {[%emt 0:00:29]} d5 $1 {[%emt 0:00:04]} 19. Qd2 {[%emt 0:00:11] aiming for Qa5.} dxc4 {[%emt 0:03:18]} 20. Qa5 {[%emt 0:00:18]} Bb7 {[%emt 0:00:01]} 21. Bxb7+ {[%emt 0:01:19]} Kxb7 {[%emt 0:00:01]} 22. Qb5+ {[%emt 0:01:05]} Ka8 {[%emt 0:00:34]} 23. Qxc4 {[%emt 0:01:47]} Rd4 {[%emt 0:01:39]} 24. Qc6+ {[%emt 0:00:31]} Kb8 {[%emt 0:00:01]} 25. Qb5+ {[%emt 0:02:54]} Ka8 {[%emt 0:00:01]} 26. Qc6+ {Weighted Error Value: White=0.00 (flawless) /Black=0.03 (flawless)} 1/2-1/2